{"text_format":"1","workbook":"xlsx","n_sheets":10,"sheets":["Paycode generieren","Batch-Generierung","Liste","Paycode-Vorlagen","E-Mail erzeugen","Info","Benutzerdaten","Basisdaten","Ergebnis","Translate"],"not_rendered":{"charts":0,"images":17,"macros":1,"external_links":0,"defined_names":24,"comments":6,"pivot_tables":0},"unopened":[],"bounds":{"document_bytes":16777216,"sheet_cells":100000,"rows_first":2000,"rows_last":500,"rows_between":2000,"halvings":0,"cell_chars":16384,"cell_head_chars":4096},"cells_cut":0,"cells_raw":0,"read":"row_number_cap","date_system":"1900"}

{"sheet":"Paycode generieren","index":0,"n_rows":33,"n_cols":6,"rows_kept":33,"cut":false,"hidden":false,"merged":[[13,4,13,5],[6,4,6,5],[9,4,9,5],[10,4,10,5],[11,4,11,5],[12,4,12,5]]}
[]
[null,{"$f":"INDEX(Translate!$B$21:$J$1001,Translate!A21,Translate!$F$3)","v":"Paycode generieren"}]
[]
[]
[]
[]
[null,{"$f":"INDEX(Translate!$B$21:$J$1001,Translate!A22,Translate!$F$3)","v":"Einzeldaten für den Paycode"}]
[null,{"$f":"INDEX(Translate!$B$21:$J$1001,Translate!A23,Translate!$F$3)","v":"Geben Sie hier Ihre Daten für den Paycode direkt ein oder wählen Sie eine Vorlage aus."}]
[null,{"$f":"INDEX(Translate!$B$21:$J$1001,Translate!A24,Translate!$F$3)","v":"Vorlage auswählen"},":",null,null,{"$f":"INDEX(Translate!$B$21:$J$1001,Translate!A31,Translate!$F$3)","v":"Prüfung"}]
[null,{"$f":"INDEX(Translate!$B$21:$J$1001,Translate!A25,Translate!$F$3)","v":"Verwendungszwecke 1 *"},":",null,{"$f":"IF(N_reason_1<>\"\",IF(LEN(N_reason_1)<28,\"OK\",\"Zu viele Zeichen\"),\"\")","v":""}]
[null,{"$f":"INDEX(Translate!$B$21:$J$1001,Translate!A26,Translate!$F$3)","v":"Verwendungszwecke 2 *"},":",null,{"$f":"IF(N_reason_2<>\"\",IF(LEN(N_reason_2)<28,\"OK\",\"Zu viele Zeichen\"),\"\")","v":""}]
[null,{"$f":"INDEX(Translate!$B$21:$J$1001,Translate!A27,Translate!$F$3)","v":"Betrag *"},":",null,{"$f":"IF(N_amount<>\"\",IF(ISNUMBER(D12)=TRUE,\"OK\",\"Nur Zahlen möglich\"),\"\")","v":""}]
[null,{"$f":"INDEX(Translate!$B$21:$J$1001,Translate!A28,Translate!$F$3)","v":"Gültig ab [TT.MM.JJJJ]"},":",null,{"$f":"IF(N_start_date<>\"\",\"OK\",\"\")","v":""}]
[null,{"$f":"INDEX(Translate!$B$21:$J$1001,Translate!A29,Translate!$F$3)","v":"Gültig bis [TT.MM.JJJJ]"},":",null,{"$f":"IF(N_end_date<>\"\",\"OK\",\"\")","v":""}]
[]
[null,{"$f":"INDEX(Translate!$B$21:$J$1001,Translate!A30,Translate!$F$3)","v":"* Pflichtfelder müssen gefüllt werden"}]
[]
[]
[]
[]
[]
[null,{"$f":"INDEX(Translate!$B$21:$J$1001,Translate!A33,Translate!$F$3)","v":"Hyperlink"},":",null,null,{"$f":"INDEX(Translate!$B$21:$J$1001,Translate!A32,Translate!$F$3)","v":"         kopieren"}]
[null,{"$f":"INDEX(Translate!$B$21:$J$1001,Translate!A34,Translate!$F$3)","v":"Paycode"},":",null,null,{"$f":"INDEX(Translate!$B$21:$J$1001,Translate!A32,Translate!$F$3)","v":"         kopieren"}]
[]
[]
[]
[]
[]
[]
[]
[]
[]
[null,null,null,null,null,{"$f":"IF(Basisdaten!B102=\"Ja\",\"Trial-Version\",INDEX(Translate!$B$21:$J$1001,Translate!A36,Translate!$F$3))","v":"Trial-Version"}]

{"sheet":"Batch-Generierung","index":1,"n_rows":10,"n_cols":13,"rows_kept":10,"cut":false,"hidden":false,"merged":[[6,5,6,6],[6,11,6,12]],"read":"row_number_cap"}
[]
[null,null,{"$f":"INDEX(Translate!$B$21:$J$1001,Translate!A101,Translate!$F$3)","v":"Paycode Batch-Generierung"}]
[]
[]
[]
[]
[null,null,{"$f":"INDEX(Translate!$B$21:$J$1001,Translate!A102,Translate!$F$3)","v":"Daten für die Paycode Batch-Generierung"}]
[null,null,{"$f":"INDEX(Translate!$B$21:$J$1001,Translate!A103,Translate!$F$3)","v":"Geben Sie hier Ihre Daten für den Paycode zur Batch-Verarbeitung ein. Mit einem Klick auf die Schaltfläche \"Paycodes generieren\" wird für alle Zahlungen ein Paycode erzeugt."}]
[]
[null,null,{"$f":"INDEX(Translate!$B$21:$J$1001,Translate!A104,Translate!$F$3)&Benutzerdaten!$F$16","v":"Betrag * EUR"},{"$f":"INDEX(Translate!$B$21:$J$1001,Translate!A105,Translate!$F$3)","v":"Verwendungszwecke 1 *"},{"$f":"INDEX(Translate!$B$21:$J$1001,Translate!A106,Translate!$F$3)","v":"Verwendungszwecke 2 *"},{"$f":"INDEX(Translate!$B$21:$J$1001,Translate!A107,Translate!$F$3)","v":"Gültig ab"},{"$f":"INDEX(Translate!$B$21:$J$1001,Translate!A108,Translate!$F$3)","v":"Gültig bis"},null,null,null,{"$f":"INDEX(Translate!$B$21:$J$1001,Translate!A109,Translate!$F$3)","v":"Erzeugt am"},{"$f":"INDEX(Translate!$B$21:$J$1001,Translate!A110,Translate!$F$3)","v":"Paycode"},{"$f":"INDEX(Translate!$B$21:$J$1001,Translate!A111,Translate!$F$3)","v":"Payment Hyperlink"}]

{"sheet":"Liste","index":2,"n_rows":26,"n_cols":13,"rows_kept":26,"cut":false,"hidden":false,"merged":[]}
[]
[null,{"$f":"INDEX(Translate!$B$21:$J$1001,Translate!A201,Translate!$F$3)","v":"Paycode Übersichts-Liste"}]
[]
[]
[]
[]
[null,{"$f":"INDEX(Translate!$B$21:$J$1001,Translate!A202,Translate!$F$3)","v":"In dieser Übersicht werden alle erzeugten Paycodes aufgelistet. Darüber hinaus können Sie über die Schaltfläche \"Paycode Status abfragen\" den Status der Paycodes aktualisieren."}]
[null,{"$f":"INDEX(Translate!$B$21:$J$1001,Translate!A205,Translate!$F$3)","v":"Zeitstempel"},null,{"$f":"INDEX(Translate!$B$21:$J$1001,Translate!A206,Translate!$F$3)","v":"Verwendungszweck"},{"$f":"INDEX(Translate!$B$21:$J$1001,Translate!A207,Translate!$F$3)","v":"Betrag"},{"$f":"INDEX(Translate!$B$21:$J$1001,Translate!A208,Translate!$F$3)","v":"Whrg."},{"$f":"INDEX(Translate!$B$21:$J$1001,Translate!A209,Translate!$F$3)","v":"Datum Gültig ab"},{"$f":"INDEX(Translate!$B$21:$J$1001,Translate!A210,Translate!$F$3)","v":"Datum Gültig bis"},{"$f":"INDEX(Translate!$B$21:$J$1001,Translate!A211,Translate!$F$3)","v":"Status"},null,{"$f":"INDEX(Translate!$B$21:$J$1001,Translate!A212,Translate!$F$3)","v":"Paycode"},{"$f":"INDEX(Translate!$B$21:$J$1001,Translate!A213,Translate!$F$3)","v":"Payment Hyperlink"}]
[]
[]
[]
[]
[]
[]
[]
[]
[]
[]
[]
[]
[]
[]
[]
[]
[]
[null,null,null,null,null,null,null,null,null,null,null,null,"https://www.sofort.com/paycode/da80060f32"]

{"sheet":"Paycode-Vorlagen","index":3,"n_rows":15,"n_cols":8,"rows_kept":15,"cut":false,"hidden":false,"merged":[]}
[]
[null,null,{"$f":"INDEX(Translate!$B$21:$J$1001,Translate!A301,Translate!$F$3)","v":"Paycode Vorlagen verwalten"}]
[]
[]
[]
[]
[]
[]
[null,null,{"$f":"INDEX(Translate!$B$21:$J$1001,Translate!A302,Translate!$F$3)","v":"Vorlage in das Zahlungsformular übernehmen"}]
[null,null,{"$f":"INDEX(Translate!$B$21:$J$1001,Translate!A303,Translate!$F$3)","v":"Definieren Sie beliebig viele Paycode-Vorlagen. Diese können Sie bei Ihren Zahlungsvorgängen entsprechend verwenden."}]
[]
[null,null,null,{"$f":"IF($C$12<>\"\",VLOOKUP($C$12,$C$14:$H$1000,2,0),\"\")","v":""},{"$f":"IF($C$12<>\"\",VLOOKUP($C$12,$C$14:$H$1000,3,0),\"\")","v":""},{"$f":"IF($C$12<>\"\",VLOOKUP($C$12,$C$14:$H$1000,4,0),\"\")","v":""},{"$f":"IF($C$12<>\"\",IF(VLOOKUP($C$12,$C$14:$H$1000,5,0) = 0,\"\",VLOOKUP($C$12,$C$14:$H$1000,5,0)),\"\")","v":""},{"$f":"IF($C$12<>\"\",IF(VLOOKUP($C$12,$C$14:$H$1000,6,0)=0,\"\",VLOOKUP($C$12,$C$14:$H$1000,6,0)),\"\")","v":""}]
[null,null,{"$f":"INDEX(Translate!$B$21:$J$1001,Translate!A304,Translate!$F$3)","v":"Vorlage"},{"$f":"INDEX(Translate!$B$21:$J$1001,Translate!A305,Translate!$F$3)","v":"Verwendungszwecke 1*"},{"$f":"INDEX(Translate!$B$21:$J$1001,Translate!A306,Translate!$F$3)","v":"Verwendungszwecke 2*"},{"$f":"INDEX(Translate!$B$21:$J$1001,Translate!A307,Translate!$F$3)&\" \" &Benutzerdaten!$F$16","v":"Betrag* EUR"},{"$f":"INDEX(Translate!$B$21:$J$1001,Translate!A308,Translate!$F$3)","v":"Gültig ab"},{"$f":"INDEX(Translate!$B$21:$J$1001,Translate!A309,Translate!$F$3)","v":"Gültig bis"}]
[null,null,"Testvorlage 1","Beispiel 1","Bestell-Nr 1",25,"03.08.2015 00:00:00","2015-12-26"]
[null,null,"Testvorlage 2","Beispiel 2","Bestell-Nr 2",26,"10.08.2015 00:00:00","2015-11-30"]

{"sheet":"E-Mail erzeugen","index":4,"n_rows":12,"n_cols":3,"rows_kept":12,"cut":false,"hidden":false,"merged":[[6,3,6,4],[7,3,7,4],[11,1,11,4],[10,2,10,4],[5,1,5,6]]}
[]
[null,{"$f":"INDEX(Translate!$B$21:$J$1001,Translate!A401,Translate!$F$3)","v":"E-Mail erzeugen und versenden"}]
[]
[]
[]
[null,{"$f":"INDEX(Translate!$B$21:$J$1001,Translate!A402,Translate!$F$3)","v":"Geben Sie hier die Daten für den E-Mailversand an. Die Platzhalter werden automatisch mit den Werten des Paycodes aus dem Reiter \"Generieren\" bzw. der gewählten Vorlage belegt."}]
[null,{"$f":"INDEX(Translate!$B$21:$J$1001,Translate!A405,Translate!$F$3)","v":"E-Mail Empfänger (To)"},":"]
[null,{"$f":"INDEX(Translate!$B$21:$J$1001,Translate!A406,Translate!$F$3)","v":"E-Mail Kopie (CC)"},":"]
[]
[null,{"$f":"INDEX(Translate!$B$21:$J$1001,Translate!A407,Translate!$F$3)","v":"E-Mail Text"}]
[null,{"$f":"INDEX(Translate!$B$21:$J$1001,Translate!A408,Translate!$F$3)","v":"Betreff"},"Ihre Bestellung bei der Muster GmbH"]
[null,"Sehr geehrte Damen und Herren,\n\nherzlichen Dank für Ihren Einkauf von <VERWENDUNGSZWECK1> bei der Muster GmbH. \nIhr Rechnungsbetrag lautet <BETRAG> <WAEHRUNG> inkl. Umsatzsteuer.\n\nZahlen Sie diesen Betrag nun gleich mit SOFORT Überweisung über diesen Link:\n<PAYCODELINK>\n\nAlternativ geben Sie den Paycode <PAYCODE> einfach auf unserer Website www.sofort.com/paycode ein.\n\nDer Paycode ist gültig bis zum <GUELTIG-BIS>.\n\nMit freundlichen Grüßen\n"]

{"sheet":"Info","index":5,"n_rows":36,"n_cols":11,"rows_kept":36,"cut":false,"hidden":false,"merged":[[35,2,35,4],[34,2,34,4],[29,8,29,9]]}
[]
[null,{"$f":"INDEX(Translate!$B$21:$J$1001,Translate!A501,Translate!$F$3)","v":"Information"}]
[]
[]
[]
[]
[null,{"$f":"INDEX(Translate!$B$21:$J$1001,Translate!A502,Translate!$F$3)","v":"xls-PAYCODE ist ein Excel-Programm mit dem SOFORT Überweisungen über den Dienst der SOFORT AG einfach und schnell erstellt werden können."}]
[null,{"$f":"INDEX(Translate!$B$21:$J$1001,Translate!A503,Translate!$F$3)","v":"Es sind nur wenige Schritte dafür notwendig:"}]
[null,{"$f":"INDEX(Translate!$B$21:$J$1001,Translate!A504,Translate!$F$3)","v":"1. Eingabe der Überweisungsdaten wie Betrag, Verwendungszweck und Datum der Überweisung"}]
[null,{"$f":"INDEX(Translate!$B$21:$J$1001,Translate!A505,Translate!$F$3)","v":"2. Paycode bzw. Paycode-Link generieren"}]
[null,{"$f":"INDEX(Translate!$B$21:$J$1001,Translate!A506,Translate!$F$3)","v":"3. Paycode-Link an Käufer senden, z. B. per E-Mail"}]
[null,{"$f":"INDEX(Translate!$B$21:$J$1001,Translate!A507,Translate!$F$3)","v":"4. Käufer kann über den Paycode-Link oder den Paycode auf der Seite www.sofort.com/paycode die Überweisung ausführen"}]
[]
[null,{"$f":"INDEX(Translate!$B$21:$J$1001,Translate!A508,Translate!$F$3) & \" \" & K32 & \" \" & INDEX(Translate!$B$21:$J$1001,Translate!A509,Translate!$F$3)","v":"Bei der vorliegenden Version handelt es sich um eine Trial-Version mit folgenden Funktionen:"}]
[null,{"$f":"INDEX(Translate!$B$21:$J$1001,Translate!A510,Translate!$F$3)","v":" - Es können beliebig viele Vorlagen gespeichert werden"}]
[null,{"$f":"INDEX(Translate!$B$21:$J$1001,Translate!A511,Translate!$F$3)","v":" - Es können beliebig viele E-Mails versendet werden"}]
[null,{"$f":"INDEX(Translate!$B$21:$J$1001,Translate!A512,Translate!$F$3)","v":" - E-Mails können unter Verwendung von <PLATZHALTERN> individuell erstellt werden."}]
[null,{"$f":"INDEX(Translate!$B$21:$J$1001,Translate!A513,Translate!$F$3)","v":" - Nach dem Erwerb der Vollversion erhalten Sie einen Freischaltcode, mit dem die bestehende Datei freigeschaltet wird. Damit können "}]
[null,{"$f":"INDEX(Translate!$B$21:$J$1001,Translate!A514,Translate!$F$3)","v":"    alle bereits eingetragenen Daten wie Vorlagen etc. weiter verwendet werden."}]
[null,{"$f":"IF(K32=\"Trial-Version\", INDEX(Translate!$B$21:$J$1001,Translate!A515,Translate!$F$3) &\" \" &N_AnzDemo&\" \" & INDEX(Translate!$B$21:$J$1001,Translate!A516,Translate!$F$3),INDEX(Translate!$B$21:$J$1001,Translate!A517,Translate!$F$3))","v":"Es können maximal 100 Paycodes erzeugt werden"}]
[]
[null,{"$f":"INDEX(Translate!$B$21:$J$1001,Translate!A518,Translate!$F$3)","v":"Das Programm wurde in Zusammenarbeit mit der Firma Excel-Inside Solutions entwickelt, welche auch den Support übernimmt."}]
[]
[null,{"$f":"INDEX(Translate!$B$21:$J$1001,Translate!A519,Translate!$F$3)","v":"Wenn Sie sich für eine Vollversion des Programms interessieren, können Sie jederzeit gerne auf die Firma Excel-Inside Solutions zukommen"}]
[null,{"$f":"INDEX(Translate!$B$21:$J$1001,Translate!A520,Translate!$F$3)","v":"oder diese direkt auf der Webseite  "},null,null,null,null,{"$f":"INDEX(Translate!$B$21:$J$1001,Translate!A521,Translate!$F$3)","v":"bestellen."}]
[null,{"$f":"INDEX(Translate!$B$21:$J$1001,Translate!A522,Translate!$F$3)","v":"Gerne berät und unterstützt Sie Excel-Inside Solutions auch, wenn es um die individuelle Anpassung des vorliegenden Programms auf"}]
[null,{"$f":"INDEX(Translate!$B$21:$J$1001,Translate!A523,Translate!$F$3)","v":"Ihre Bedürfnisse geht. Sie sagen einfach, welche Funktion oder Erweiterung Sie benötigen und Excel-Inside Solutions setzt sich "}]
[null,{"$f":"INDEX(Translate!$B$21:$J$1001,Translate!A524,Translate!$F$3)","v":"umgehend mit Ihnen in Verbindung."}]
[]
[null,{"$f":"INDEX(Translate!$B$21:$J$1001,Translate!A525,Translate!$F$3)","v":"Kontakt Excel-Inside Solutions"},null,null,null,{"$f":"INDEX(Translate!$B$21:$J$1001,Translate!A526,Translate!$F$3)","v":"Kontakt Sofort GmbH"},null,null,{"$f":"INDEX(Translate!$B$21:$J$1001,Translate!A531,Translate!$F$3)","v":"Funktionen"},null,{"$f":"INDEX(Translate!$B$21:$J$1001,Translate!A532,Translate!$F$3)","v":"Version"}]
[null,{"$f":"INDEX(Translate!$B$21:$J$1001,Translate!A527,Translate!$F$3)","v":"Anschrift:"},"Excel-Inside Solutions",null,null,{"$f":"INDEX(Translate!$B$21:$J$1001,Translate!A527,Translate!$F$3)","v":"Anschrift:"},"Sofort GmbH",null,null,null,"150423-1.08"]
[null,null,"Grabbestraße 25",null,null,null,"Fußbergstraße 1",null,null,null,{"$f":"IF(Basisdaten!$B$102=\"Ja\",\"Trial-Version\",\"Registrierte Version\")","v":"Trial-Version"}]
[null,null,"90427 Nürnberg",null,null,null,"82131 Gauting",null,null,null,{"$f":"IF(K32<>\"Trial-Version\",\"Bestell-Nr.: \"&Basisdaten!B126,\"\")","v":""}]
[null,{"$f":"INDEX(Translate!$B$21:$J$1001,Translate!A528,Translate!$F$3)","v":"Telefon:"},"+49 (0)911/148 70 15-0 ",null,null,{"$f":"INDEX(Translate!$B$21:$J$1001,Translate!A528,Translate!$F$3)","v":"Telefon:"},"+49 (0)89/2020889-500"]
[null,{"$f":"INDEX(Translate!$B$21:$J$1001,Translate!A529,Translate!$F$3)","v":"E-Mail:"},"paycode@excel-inside.de",null,null,{"$f":"INDEX(Translate!$B$21:$J$1001,Translate!A529,Translate!$F$3)","v":"E-Mail:"},"info@sofort.com"]
[null,{"$f":"INDEX(Translate!$B$21:$J$1001,Translate!A530,Translate!$F$3)","v":"Web:"},"http://paycode.excel-inside.de",null,null,{"$f":"INDEX(Translate!$B$21:$J$1001,Translate!A530,Translate!$F$3)","v":"Web:"},"www.sofort.com"]

{"sheet":"Benutzerdaten","index":6,"n_rows":137,"n_cols":11,"rows_kept":137,"cut":false,"hidden":false,"merged":[[15,3,15,4],[15,6,15,8],[22,3,22,5],[10,3,10,8],[11,3,11,8],[12,3,12,8],[13,3,13,8],[14,3,14,8],[35,5,35,8],[23,3,23,5],[17,3,17,5],[18,3,18,5],[19,3,19,5]]}
[]
[null,{"$f":"INDEX(Translate!$B$21:$J$1001,Translate!A601,Translate!$F$3)","v":"Benutzerdaten"}]
[]
[]
[]
[]
[]
[]
[null,{"$f":"INDEX(Translate!$B$21:$J$1001,Translate!A602,Translate!$F$3)","v":"Erfassen Sie bitte in die grau hinterlegten Felder Ihre Daten. Zwingend notwendig ist der Konfigurationsschlüssel."}]
[]
[null,{"$f":"INDEX(Translate!$B$21:$J$1001,Translate!A603,Translate!$F$3)","v":"Konfigurationsschlüssel"},":",null,null,null,null,null,null,null,false]
[null,{"$f":"INDEX(Translate!$B$21:$J$1001,Translate!A604,Translate!$F$3)","v":"Erfolgs URL"},":",null,null,null,null,null,null,null,false]
[null,{"$f":"INDEX(Translate!$B$21:$J$1001,Translate!A605,Translate!$F$3)","v":"Abbruch URL"},":"]
[null,{"$f":"INDEX(Translate!$B$21:$J$1001,Translate!A606,Translate!$F$3)","v":"Benachrichtigungs E-Mail"},":"]
[null,"Kundenvariable",":"]
[null,{"$f":"INDEX(Translate!$B$21:$J$1001,Translate!A607,Translate!$F$3)","v":"Währung"},":","Euro [EUR]",null,{"$f":"VLOOKUP(D16,Basisdaten!$A$201:$D$365,2,0)","v":"EUR"},{"$f":"VLOOKUP(D16,Basisdaten!$A$201:$D$365,4,0)","v":"Europäische Währungsunion "}]
[]
[null,{"$f":"INDEX(Translate!$B$21:$J$1001,Translate!A608,Translate!$F$3)","v":"Kundennummer"},":",{"$f":"IF(D11<>\"\",LEFT(D11,SEARCH(\":\",D11,1)-1),\"\")","v":""},null,null,null,{"$f":"INDEX(Translate!$B$21:$J$1001,Translate!A615,Translate!$F$3)","v":"Sprache"},"German"]
[null,{"$f":"INDEX(Translate!$B$21:$J$1001,Translate!A609,Translate!$F$3)","v":"Projektnummer"},":",{"$f":"IF(D11<>\"\",MID(D11,SEARCH(\":\",D11,1)+1,SEARCH(\":\",D11,SEARCH(\":\",D11,1)+2)-SEARCH(\":\",D11,1)-1),\"\")","v":""}]
[null,{"$f":"INDEX(Translate!$B$21:$J$1001,Translate!A610,Translate!$F$3)","v":"API Key"},":",{"$f":"IF(D11<>\"\",RIGHT(D11,LEN(D11)-SEARCH(\":\",D11,SEARCH(\":\",D11,1)+2)),\"\")","v":""}]
[]
[]
[null,{"$f":"INDEX(Translate!$B$21:$J$1001,Translate!A611,Translate!$F$3)","v":"Proxy-Server verwenden"},":","Nein"]
[null,{"$f":"INDEX(Translate!$B$21:$J$1001,Translate!A612,Translate!$F$3)","v":"Proxy IP-Adresse:Port"},":","http://219.93.183.106:8080"]
[]
[]
[]
[]
[]
[]
[]
[]
[null,{"$f":"INDEX(Translate!$B$21:$J$1001,Translate!A613,Translate!$F$3)","v":"E-Mail Programm auswählen"}]
[null,"Microsoft Outlook",":"]
[null,"IBM Notes",":"]
[null,"Mozilla Thunderbird",":",null,{"$f":"INDEX(Translate!$B$21:$J$1001,Translate!A614,Translate!$F$3)","v":"Pfad :"},"F:\\LiberKey\\Apps\\Thunderbird\\App\\Thunderbird\\thunderbirdx.exe"]
[]
[]
[]
[]
[]
[]
[]
[]
[]
[]
[]
[]
[]
[]
[]
[]
[]
[]
[]
[]
[]
[]
[]
[]
[]
[]
[]
[]
[]
[]
[]
[]
[]
[]
[]
[]
[]
[]
[]
[]
[]
[]
[]
[]
[]
[]
[]
[]
[]
[]
[]
[]
[]
[]
[]
[]
[]
[]
[]
[]
[]
[]
[]
[]
[]
[]
[]
[]
[]
[]
[]
[]
[]
[]
[]
[]
[]
[]
[]
[]
[]
[]
[]
[]
[]
[]
[]
[]
[]
[]
[]
[]
[]
[]
[]
[]
[]
[]
[]
[]
[null,true]

{"sheet":"Basisdaten","index":7,"n_rows":301,"n_cols":4,"rows_kept":301,"cut":false,"hidden":true,"merged":[[60,0,60,1]]}
["Basisdaten für die Generierung von Sofortüberweisungen"]
[]
["Projekt Nummer",{"$f":"IF(Benutzerdaten!D19<>\"\",Benutzerdaten!D19,\"\")","v":""}]
["Sprache",{"$f":"IF(Benutzerdaten!D21<>\"\",Benutzerdaten!D21,\"\")","v":""}]
["Währung",{"$f":"IF(Benutzerdaten!F16<>\"\",Benutzerdaten!F16,\"\")","v":"EUR"}]
["Erfolgs_URL",{"$f":"IF(Benutzerdaten!D12<>\"\",Benutzerdaten!D12,\"\")","v":""}]
["Abbruch_URL",{"$f":"IF(Benutzerdaten!D13<>\"\",Benutzerdaten!D13,\"\")","v":""}]
["Käuferschutz",1,"nicht relevant"]
["Kundenvariable",{"$f":"IF(Benutzerdaten!D15<>\"\",Benutzerdaten!D15,\"\")","v":""}]
["Benachrichtigung http","http://www.sofort.com/notify3.php","nicht relevant"]
["Benachrichtigung eMail",{"$f":"IF(Benutzerdaten!D14<>\"\",Benutzerdaten!D14,\"\")","v":""}]
["Konfigurationsschlüssel",{"$f":"IF(Benutzerdaten!D11<>\"\",Benutzerdaten!D11,\"\")","v":""}]
["Kd-Nr",{"$f":"IF(Benutzerdaten!D18<>\"\",Benutzerdaten!D18,\"\")","v":""}]
["API Key",{"$f":"IF(Benutzerdaten!D20<>\"\",Benutzerdaten!D20,\"\")","v":""}]
[]
[]
[]
[]
[]
[]
[]
[]
[]
[]
[]
[]
[]
[]
[]
[]
[]
[]
[]
[]
[]
[]
[]
[]
[]
[]
[]
[]
[]
[]
[]
[]
[]
[]
[]
["Basisdaten für die Generierung von E-Mails"]
[]
["Absender-Email-Adresse"]
["Betreff","Ihre Bestellung bei SOFORT"]
["Paycode",{"$f":"'Paycode generieren'!$D$23","v":0}]
["Paycode_URL",{"$f":"'Paycode generieren'!$D$22","v":0}]
["Betrag",{"$f":"'Paycode generieren'!$D$12","v":0}]
["Verwendungszweck 1",{"$f":"'Paycode generieren'!$D$10","v":0}]
["Verwendungszweck 2",{"$f":"'Paycode generieren'!$D$11","v":0}]
[]
["E-Mail Vorlage"]
[]
["E-Mail sofort versenden:",false]
["Erzeugen Paycode aus Reiter E-Mail:",false]
[]
[]
[]
[]
[]
[]
[]
[]
[]
[]
[]
[]
[]
[]
[]
[]
[]
[]
[]
[]
[]
[]
[]
[]
[]
[]
[]
[]
[]
[]
[]
[]
[]
[]
[]
[]
["Sonstige Optionen und Einstellungen"]
[]
["Demo-Version:","Ja"]
["Anzahl mögliche Paycodes:",100]
["Anzahl erstellte Paycodes:",0]
[]
["Admin-Umgebung ein:"]
[]
[]
[]
["E-Mail Adresse und Text für Bestellung über das Programm selber (Userform frmDemo)"]
["Demo-E-Mail Adresse","paycode@excel-inside.de"]
["Demo-E-Mail Betreff:","xls-PAYCODE [Trial-Version]"]
["Demo-E-Mail Text","Sehr geehrte Damen und Herren,\n\nwir haben die Demo-Version des Programms xls-PayCODE getestet und haben Interesse\nan einer Vollversion beziehungsweise an einer für unsere Zwecke angepassten Individual-Lösung.\n\nBitte setzen Sie sich mit uns in Verbindung.\n\nMit freundlichen Grüßen\n"]
[]
[]
[]
[]
["Benutzerpasswort für User-Login zu Änderung des Konfigurationsschlüssels"]
["Benutzerpasswort  Konfig-Schlüss:",12345]
["Benutzerpasswort URL:",12345]
[]
[]
[]
[]
["Lizenzinformationen"]
["Bestellnummer manuell erfasst:"]
["Freischaltcode manuell erfasst:"]
["Freischaltcode berechnet:"]
[]
[]
[]
[]
[]
["Einstellungen für den Mail-Versand"]
["Wählen Sie das Programm aus, über welches die E-Mails versendet werden sollen."]
[]
["Microsoft Outlook:",true]
["Lotus Notes:",false]
["Mozilla Firefox:",false]
[]
[]
[]
[]
[]
[]
[]
[]
[]
[]
["Fehlerinfo Abruf aus API-Schnittstelle"]
["Fehlerflag gesetzt:","OK"]
["Hinweis: Wenn das Fehler-Flag gesetzt ist, dann wird keine weitere Programmfunktion ausgeführt!"]
[]
[]
[]
[]
[]
[]
[]
[]
[]
[]
[]
[]
[]
[]
[]
[]
[]
[]
[]
[]
[]
[]
[]
[]
[]
[]
[]
[]
[]
[]
[]
[]
[]
["Einstellungen für Kalenderpicker - Merkmal ob von Gültig ab oder von Gültig bis aufgerufen wurde"]
["a = Gültig ab; b = Gültig bis :","a"]
["Blatt und Zelle:","Paycode-Vorlagen","G14"]
[]
[]
[]
["Einstellungen zur Anzeige der Kommentare / Indikatoern"]
["Status beim Start von Excel:",-1]
[]
[]
[]
[]
[]
["Währungsübersicht"]
[{"$f":"\"Basisdaten!A201:A\"&COUNTA(A201:A365)+200","v":"Basisdaten!A201:A205"},{"$f":"\"Basisdaten!B201:B\"&COUNTA(B201:B365)+200","v":"Basisdaten!B201:B205"}]
[{"$f":"C201 & \" [\" &B201&\"]\"","v":"Euro [EUR]"},"EUR","Euro","Europäische Währungsunion "]
[{"$f":"C202 & \" [\" &B202&\"]\"","v":"Schweizer Franken [CHF]"},"CHF","Schweizer Franken","Schweiz, Liechtenstein"]
["Pfund [GBP]","GBP","Pfund","Vereinigtes Königreich"]
["Forint [HUF]","HUF","Forint","Ungarn"]
["Zloty [PLN]","PLN","Zloty","Polen"]
[]
[]
[]
[]
[]
[]
[]
[]
[]
[]
[]
[]
[]
[]
[]
[]
[]
[]
[]
[]
[]
[]
[]
[]
[]
[]
[]
[]
[]
[]
[]
[]
[]
[]
[]
[]
[]
[]
[]
[]
[]
[]
[]
[]
[]
[]
[]
[]
[]
[]
[]
[]
[]
[]
[]
[]
[]
[]
[]
[]
[]
[]
[]
[]
[]
[]
[]
[]
[]
[]
[]
[]
[]
[]
[]
[]
[]
[]
[]
[]
[]
[]
[]
[]
[]
[]
[]
[]
[]
[]
[]
[]
[]
[]
[]
[null,null,"OK"]

{"sheet":"Ergebnis","index":8,"n_rows":25,"n_cols":4,"rows_kept":25,"cut":false,"hidden":true,"merged":[]}
["Paycode Initialisierung Response",null,"Initial Request","Fehlerwerte bereinigt"]
["Original Response","<?xml version=\"1.0\" encoding=\"UTF-8\" ?>\n<new_paycode><paycode>3339a6a2bc</paycode><paycode_url>https://www.sofort.com/paycode/3339a6a2bc</paycode_url></new_paycode>","<?xml version=\"1.0\" encoding=\"UTF-8\"?><paycode><project_id>178572</project_id><interface_version>xlsm-interface</interface_version><language_code></language_code><start_date>2014-11-29 00:00:00</start_date><end_date>2015-12-31 00:00:00</end_date><amount>123</amount><currency_code>EUR</currency_code><reasons><reason>test 4</reason><reason> </reason></reasons><success_url>https://www.sofort.com/ger-DE/kaeufer/sp/rechnung-sofort-ueberweisung-paycode/</success_url><success_link_redirect>0</success_link_redirect><abort_url>https://www.sofort.com/ger-DE/kaeufer/sp/sofort-ueberweisung-paycode-sicher/</abort_url><notification_emails><notification_email>test@test.de</notification_email></notification_emails></paycode>",{"$f":"MID(B2,SEARCH(\"<message>\",B2)+9,SEARCH(\"</message>\",B2)-(SEARCH(\"<message>\",B2)+9))","v":{"$error":"#VALUE!"}}]
["paycode",{"$f":"MID($B$2,FIND(\"<\"&A3&\">\",$B$2)+ LEN(A3)+2,FIND(\"</\"&A3,$B$2)-FIND(\"<\"&A3&\">\",$B$2)-LEN(A3)-2)","v":"3339a6a2bc"},{"$f":"IF(ISERROR(B3)=FALSE,\"OK\",\"Fehler\")","v":"OK"}]
["paycode_url",{"$f":"MID($B$2,FIND(\"<\"&A4&\">\",$B$2)+ LEN(A4)+2,FIND(\"</\"&A4,$B$2)-FIND(\"<\"&A4&\">\",$B$2)-LEN(A4)-2)","v":"https://www.sofort.com/paycode/3339a6a2bc"},{"$f":"IF(ISERROR(B4)=FALSE,\"OK\",\"Fehler\")","v":"OK"}]
["Hyperlink",{"$f":"HYPERLINK(B4,B4)","v":"https://www.sofort.com/paycode/3339a6a2bc"}]
["Paycode Details Response"]
["Original Response","<?xml version=\"1.0\" encoding=\"UTF-8\" ?>\n<paycode_details><status>open</status><paycode>3339a6a2bc</paycode><project_id>178572</project_id><amount>123</amount><reasons><reason>test 4</reason></reasons><time_created>2015-04-23T10:13:40+02:00</time_created><time_used /><start_date>2014-11-29T00:00:00+01:00</start_date><end_date>2015-12-31T00:00:00+01:00</end_date><currency_code>EUR</currency_code><transaction /></paycode_details>"]
["paycode",{"$f":"MID($B$2,FIND(\"<\"&A8&\">\",$B$2)+ LEN(A8)+2,FIND(\"</\"&A8,$B$2)-FIND(\"<\"&A8&\">\",$B$2)-LEN(A8)-2)","v":"3339a6a2bc"}]
["paycode_url",{"$f":"MID($B$2,FIND(\"<\"&A9&\">\",$B$2)+ LEN(A9)+2,FIND(\"</\"&A9,$B$2)-FIND(\"<\"&A9&\">\",$B$2)-LEN(A9)-2)","v":"https://www.sofort.com/paycode/3339a6a2bc"}]
["Hyperlink",{"$f":"HYPERLINK(B9,B9)","v":"https://www.sofort.com/paycode/3339a6a2bc"}]
[]
["status",{"$f":"MID($B$7,FIND(\"<\"&A12&\">\",$B$7)+ LEN(A12)+2,FIND(\"</\"&A12,$B$7)-FIND(\"<\"&A12&\">\",$B$7)-LEN(A12)-2)","v":"open"}]
["project_id",{"$f":"MID($B$7,FIND(\"<\"&A13&\">\",$B$7)+ LEN(A13)+2,FIND(\"</\"&A13,$B$7)-FIND(\"<\"&A13&\">\",$B$7)-LEN(A13)-2)","v":"178572"}]
["transaction",{"$f":"IF(ISERROR(FIND(A14 & \" /\",B7)),MID($B$7,FIND(\"<\"&A14&\">\",$B$7)+ LEN(A14)+2,FIND(\"</\"&A14,$B$7)-FIND(\"<\"&A14&\">\",$B$7)-LEN(A14)-2),\"\")","v":""}]
["amount",{"$f":"MID($B$7,FIND(\"<\"&A15&\">\",$B$7)+ LEN(A15)+2,FIND(\"</\"&A15,$B$7)-FIND(\"<\"&A15&\">\",$B$7)-LEN(A15)-2)","v":"123"}]
["reason",{"$f":"MID($B$7,FIND(\"<\"&A16&\">\",$B$7)+ LEN(A16)+2,FIND(\"</\"&A16,$B$7)-FIND(\"<\"&A16&\">\",$B$7)-LEN(A16)-2)","v":"test 4"}]
["reason",{"$f":"MID($B$7,FIND(\"</\"&A17&\"><\"&A17&\">\",$B$7)+2* LEN(A17)+5,FIND(\"</\"&A17,$B$7,FIND(\"</\"&A17,$B$7)+LEN(A17))-FIND(\"</\"&A17&\"><\"&A17&\">\",$B$7)-2*LEN(A17)-5)","v":{"$error":"#VALUE!"}}]
["time_created",{"$f":"REPLACE(MID($B$7,FIND(\"<\"&A18&\">\",$B$7)+ LEN(A18)+2,FIND(\"</\"&A18,$B$7)-FIND(\"<\"&A18&\">\",$B$7)-LEN(A18)-2),11,1,\"  \")","v":"2015-04-23  10:13:40+02:00"}]
["start_date",{"$f":"REPLACE(MID($B$7,FIND(\"<\"&A19&\">\",$B$7)+ LEN(A19)+2,FIND(\"</\"&A19,$B$7)-FIND(\"<\"&A19&\">\",$B$7)-LEN(A19)-2),11,1,\"  \")","v":"2014-11-29  00:00:00+01:00"}]
["end_date",{"$f":"REPLACE(MID($B$7,FIND(\"<\"&A20&\">\",$B$7)+ LEN(A20)+2,FIND(\"</\"&A20,$B$7)-FIND(\"<\"&A20&\">\",$B$7)-LEN(A20)-2),11,1,\"  \")","v":"2015-12-31  00:00:00+01:00"}]
["currency_code",{"$f":"MID($B$7,FIND(\"<\"&A21&\">\",$B$7)+ LEN(A21)+2,FIND(\"</\"&A21,$B$7)-FIND(\"<\"&A21&\">\",$B$7)-LEN(A21)-2)","v":"EUR"}]
["language_code",{"$f":"MID($B$7,FIND(\"<\"&A22&\">\",$B$7)+ LEN(A22)+2,FIND(\"</\"&A22,$B$7)-FIND(\"<\"&A22&\">\",$B$7)-LEN(A22)-2)","v":{"$error":"#VALUE!"}}]
["variable",{"$f":"MID($B$7,FIND(\"<\"&A23&\">\",$B$7)+ LEN(A23)+2,FIND(\"</\"&A23,$B$7)-FIND(\"<\"&A23&\">\",$B$7)-LEN(A23)-2)","v":{"$error":"#VALUE!"}}]
[]
[null,{"$f":"FIND(A14,B7)","v":399}]

{"sheet":"Translate","index":9,"n_rows":813,"n_cols":11,"rows_kept":813,"cut":false,"hidden":true,"merged":[]}
["Übersetzungstabelle Deutsch / Englisch"]
[null,"Verfügbare Sprachen",null,"Maßgeblich für DropDown-Feld"]
[null,"Deutsch",1,{"$f":"INDEX(B$801:K$810,C3,$F$3)","v":"Deutsch"},"Gewählte Sprache:",{"$f":"IF(ISERROR(VLOOKUP(Benutzerdaten!I18,Translate!B3:C12,2,0)),1,VLOOKUP(Benutzerdaten!I18,Translate!B3:C12,2,0))","v":1}]
[null,"Englisch",2,{"$f":"INDEX(B$801:K$810,C4,$F$3)","v":"Englisch"}]
[null,"Spanisch",3,"Spanisch"]
[null,"Französisch",4,"Französisch"]
[null,"Polnisch",5,"Polnisch"]
[null,"Niederländisch",6,"Niederländisch"]
[null,"Italienisch",7,"Italienisch"]
[null,"Ungarisch",8,"Ungarisch"]
[null,"Slowakisch",9,"Slowakisch"]
[null,"Tchechisch",10,"Tchechisch"]
[]
[]
[]
[]
[]
[]
["Nr.","Deutsch","Englisch","Spanisch","Französisch","Polnisch","Niederländisch","Italienisch","Ungarisch","Slowakisch","Tchechisch"]
["Blatt \"Paycode generieren\""]
[1,"Paycode generieren","Generate Paycode","Generar Paycode","Générer un Paycode","Wygeneruj Paycode","Paycode genereren","Genera Paycode","Paycode generálása","Generovať Paycode","Generovat Paycode"]
[2,"Einzeldaten für den Paycode","Individual data for the Paycode","Datos individuales del Paycode","Données individuelles pour le Paycode","Dane do Paycode","Individuele gegevens voor de Paycode","Singoli dati per il Paycode","Egyes adatok a Paycode-hoz","Jednotlivé údaje pre Paycode","Jednotlivé údaje pro Paycode"]
[3,"Geben Sie hier Ihre Daten für den Paycode direkt ein oder wählen Sie eine Vorlage aus.","Enter your Paycode´s data directly or choose a template.","Introduzca directamente los datos de su Paycode o seleccione una plantilla.","Saisissez vos données pour le Paycode directement ici ou sélectionnez un modèle.","Podaj tu swoje dane do Paycode albo wybierz jeden wzór","Voer hier uw gegevens voor de Paycode rechtstreeks in of selecteer een template.","Inserisci direttamente qui i tuoi dati per il Paycode o seleziona un modello.","Adja meg közvetlenül adatait a Paycode-hoz itt, vagy válasszon ki egy mintát.","Zadajte svoje údaje pre Paycode priamo sem alebo si zvoľte šablónu.","Zadejte své údaje pro Paycode přímo zde nebo zvolte předlohu."]
[4,"Vorlage auswählen","Select a template","Seleccionar plantilla","Sélectionner un modèle","Wybierz wzór","Template selecteren","Seleziona un modello","Minta kiválasztása","Zvoliť šablónu","Zvolit předlohu"]
[5,"Verwendungszwecke 1 *","Reason 1 *","Concepto 1 *","Références de paiement 1 *","Tytuł przelewu 1 *","Gebruiksdoeleinden 1 *","Causale 1 *","Közlemény 1 *","Informácie pre príjemcu 1 *","Informace pro příjemce 1 *"]
[6,"Verwendungszwecke 2 *","Reason 2 *","Concepto 2 *","Références de paiement 2 *","Tytuł przelewu 2 *","Gebruiksdoeleinden 2 *","Causale 2 *","Közlemény 2 *","Informácie pre príjemcu 2 *","Informace pro příjemce 2 *"]
[7,"Betrag *","Amount *","Importe *","Montant *","Kwota *","Bedrag *","Importo *","Összeg *","Čiastka *","Částka *"]
[8,"Gültig ab [TT.MM.JJJJ]","Valid from [DD.MM.YYYY]","Válido a partir de [DD.MM.AAAA]","Valable à partir du [JJ.MM.AAAA]","ważny od [DD.MM.RRRR]","Geldig vanaf [DD.MM.JJJJ]","Valido dal [GG/MM/AAAA]","Érvényes a következő naptól [NN.HH.ÉÉÉÉ]","Platné od [DD.MM.RRRR]","Platné od [DD.MM.RRRR]"]
[9,"Gültig bis [TT.MM.JJJJ]","Valid until [DD.MM.YYYY]","Válido hasta [DD.MM.AAAA]","Valable jusqu'au [JJ.MM.AAAA]","ważny do [DD.MM.RRRR]","Geldig tot  [DD.MM.JJJJ]","Valido fino al [GG/MM/AAAA]","Érvényes a következő napig [NN.HH.ÉÉÉÉ]","Platné do [DD.MM.RRRR]","Platné do [DD.MM.RRRR]"]
[10,"* Pflichtfelder müssen gefüllt werden","* Required fields must be filled","* Es necesario rellenar los campos obligatorios","* Remplir les champs obligatoires","* Pola obowiązkowe muszą zostać wypełnione","* Verplichte velden moeten worden ingevuld","* I campi obbligatori devono essere compilati","* A mezők kitöltése kötelező ","* Povinné políčka musia byť vyplnené","* Povinná pole je nutno vyplnit"]
[11,"Prüfung","Check","Verificar","Contrôle","Weryfikacja","Controle","Verifica","ellenőrzés","Overenie","Ověření"]
[12,"         kopieren","         copy","         copiar","         Copier","         Skopiuj","        kopiëren","Copia","másolás","kopírovať","kopírovat"]
[13,"Hyperlink","Hyperlink","Hipervínculo","Hyperlien","Hyperlink","Hyperlink","Hyperlink","Hyperlink","Hyperlink","Hyperlink"]
[14,"Paycode","Paycode","Paycode","Paycode","Paycode","Paycode","Paycode","Paycode","Paycode","Paycode"]
["VBA15","SOFORT Überweisung Paycode generieren","Generate SOFORT\nBanking Paycode","Generar Paycode de SOFORT\nBanking","Générer un Paycode SOFORT Banking","Wygeneruj Paycode w SOFORT Banking","SOFORT Banking Paycode genereren","Genera SOFORT Banking Paycode","SOFORT Banking Paycode generálása","Generovať SOFORT Banking Paycode","Generovat SOFORT Banking Paycode"]
[16,"Registrierte Version","Registered version","Versión registrada","Version enregistrée","Wersja zarejestrowana","Geregistreerde versie","Versione registrata","Regisztrált verzió","Registrovaná verzia","Registrovaná verze"]
["VBA16","Hinweis: \nGültigkeitsbeginn muss vor dem Datum 'Gültig bis' liegen. Sofern der Start nicht angegeben wird, gilt der Paycode ab seiner Erstellung.","Note:  \nValidity from must be set before the date 'Expires'. If the start date is not specified, the Paycode validity will apply from its creation date.","Nota:  \nEl inicio del periodo de validez debe ser anterior a la fecha indicada en 'Válido hasta'. Si no se ha especificado una fecha de inicio, el Paycode se aplicará desde su creación.","Remarque : \nla date de début de validité doit se trouver avant la date indiquée au point « Valable jusqu'au ». Si la date de début n'est pas indiquée, le Paycode sera valable à partir de sa date de création.","Uwaga: \nData początkowa musi leżeć wcześniej niż data \"ważny do\". Jeżeli nie zostanie podana data początkowa, Paycode jest ważny od momentu jego wygenerowania.","Opmerking \nBegin geldigheid moet voor de datum 'Geldig tot' liggen. Indien de start niet wordt aangegeven, geldt de Paycode vanaf de aanmaak ervan.","Nota:  \nL'inizio della validità deve precedere la data di \"Valido fino al\". Qualora l'inizio non sia indicato, il Paycode vale dal momento della sua creazione. ","Figyelmeztetés: az érvényesség kezdete napjának az \"Érvényes a következő napig\" dátuma előtt kell lennie. Amennyiben a kezdetet nem adja meg, úgy a Paycode a létrehozásától érvényes.","Upozornenie:\nPlatnosť musí začať pred dátumom 'Platné do'. Ak nie je začiatok zadaný, platí Paycode odvtedy, ako bol vytvorený.","Upozornění: \nPočátek platnosti musí být před datem 'Platný do'. Pokud není uveden začátek, platí Paycode od jeho vyhotovení."]
["VBA17","Hinweis:\nGültigkeitsende muss in der Zukunft liegen (max. 900 Tage ab Startdatum). Sofern das Ende nicht angegeben wird, folgt hier automatisch das Datum des Ablaufs der im Projekt hinterlegten \"Max. Gültigkeit in Tagen\" (um 23:59:59).","Note:\nExpiry date must be set in the future (max. 900 days from start date). If the date is not given, the \"Max. Validation in days\" (at 23:59:59) stored in the project will be applied.","Nota:\nEl periodo de validez debe finalizar en una fecha futura (máx. 900 días a partir de la fecha de inicio). Si no se especifica el fin de la validez, aquí aparecerá automáticamente la fecha de expiración guardada en el proyecto bajo \"Validez máx. en días\" (a las 23:59:59).","Remarque :\nla date de fin de validité doit se trouver dans l'avenir (900 jours max. après la date de début de validité). Si la date de fin n'est pas indiquée, c'est la date d'expiration enregistrée dans le projet au point « Validité max. en nombre de jours » (à 23:59:59) qui sera reprise automatiquement.","Uwaga:\nData końcowa musi leżeć w przyszłości (maks. 900 dni od daty początkowej). Jeżeli nie zostanie podana data końcowa, data zostanie ustawiona automatycznie zgodnie z podanym w projekcie \"maks. czasem obowiązywania, wyrażonym w liczbie dni\" (o godz. 23:59:59).","Opmerking\nEinde geldigheid moet in de toekomst liggen (max. 900 dagen vanaf de startdatum). Indien het einde niet wordt aangegeven, volgt hier automatisch de afloopdatum van de in het project opslagen \"Max. geldigheid in dagen\" (om 23:59:59).","Nota:\nLa fine della validità deve essere una data nel futuro (max. 900 giorni dalla data d'inizio). Qualora la fine non sia indicata, qui risulta automaticamente la data di scadenza della \"Validità massima in giorni\" (alle 23:59:59) come definita nel progetto.","Figyelmeztetés: az érvényesség végének a jövőben kell lennie (max. 900 nappal a kezdés napja után). Amennyiben nem adja meg a végét, úgy itt automatikusan a projektben megadott \"max. érvényesség napokban\" lejáratának napja szerepel (23:59:59-kor). ","Upozornenie:\nPlatnosť musí končiť v budúcnosti (max. 900 dní od dátumu začiatku). Ak nie je koniec zadaný, uplatní sa tu automaticky dátum uplynutia \"Max. platnosti v dňoch\" uloženej v projekte (o 23:59:59).","Upozornění:\nKonec platnosti se musí nacházet v budoucnosti (max. 900 dní od data začátku). Pokud není uveden konec, následuje zde automaticky datum vypršení \"max. platnosti ve dnech \" (kolem 23:59:59) uložené v projektu."]
["VBA18","Bei der Erstellung des Paycode ist ein Fehler aufgetreten: Die Rückmeldung der API lautet:","While creating the Paycode an error has occurred: The feedback of the API are:","Se ha producido un error durante la creación del Paycode: Notificación de API:","Une erreur est survenue lors de la génération du Paycode: code retour de l'API :","W trakcie generowania Paycode wystąpił błąd: Komunikat API:","Bij de aanmaak van de Paycode is een fout opgetreden. De feedback van de API luidt:","Si è verificato un errore durante la creazione del Paycode: il feedback dell'API dice:","A Paycode létrehozásakor hiba történt: az API jelentése:","Pri vytváraní Paycode došlo k chybe: spätná väzba API znie:","Při vyhotovení Paycode došlo k chybě: zpětné potvrzení API zní:"]
["VBA19","SOFORT Überweisung\nPaycode per E-Mail \nversenden","Send SOFORT Banking\nPaycode via E-mail","Enviar el Paycode de SOFORT Banking por correo electrónico","Envoyer le Paycode\nSOFORT Banking\npar e-mail","Wyślij SOFORT Banking Paycode drogą mailową","SOFORT Banking Paycode via e-mail versturen","Invia il SOFORT Banking Paycode via e-mail","SOFORT Banking Paycode elküldése e-mailben","Poslať SOFORT Banking Paycode e-mailom","Zaslat SOFORT Banking Paycode mailem"]
["VBA20","Vollversion freischalten","Unlock the Full Version","Desbloquear la versión completa","Activer la version complète","Włącz pełną wersję","Complete versie vrijgeven","Attiva la versione completa","A teljes verzió bekapcsolása","Aktivovať úplnú verziu","Aktivovat plnou verzi"]
[]
[]
[]
[]
[]
[]
[]
[]
[]
[]
[]
[]
[]
[]
[]
[]
[]
[]
[]
[]
[]
[]
[]
[]
[]
[]
[]
[]
[]
[]
[]
[]
[]
[]
[]
[]
[]
[]
[]
[]
[]
[]
[]
[]
[]
[]
[]
[]
[]
[]
[]
[]
[]
[]
[]
[]
[]
[]
["Blatt \"Batch-Generierung\""]
[81,"Paycode Batch-Generierung","Paycode Batch generation"]
[82,"Daten für die Paycode Batch-Generierung","Data for the Paycode batch generation"]
[83,"Geben Sie hier Ihre Daten für den Paycode zur Batch-Verarbeitung ein. Mit einem Klick auf die Schaltfläche \"Paycodes generieren\" wird für alle Zahlungen ein Paycode erzeugt.","Enter your data here for the Paycode batch processing. By clicking on the button \"Generate Paycodes\" a Paycode is generated for all payments."]
[84,"Betrag * ","Amount * "]
[85,"Verwendungszwecke 1 *","Reason 1 *"]
[86,"Verwendungszwecke 2 *","Reason 2 *"]
[87,"Gültig ab","Valid from"]
[88,"Gültig bis","Valid until"]
[89,"Erzeugt am","Generated on"]
[90,"Paycode","Paycode"]
[91,"Payment Hyperlink","Payment Hyperlink"]
["VBA92","Alle Einträge löschen","Delete all entries"]
["VBA93","Paycodes generieren","Generate Paycodes"]
["VBA94","Hinweis: \nGültigkeitsbeginn muss vor dem Datum 'Gültig bis' liegen. Sofern der Start nicht angegeben wird, gilt der Paycode ab seiner Erstellung.","Note:  \nValidity start must be before the date 'Expires'. Where are the start is not specified, the Paycode shall apply from its creation."]
["VBA95","Hinweis:\nGültigkeitsende muss in der Zukunft liegen (max. 900 Tage ab Startdatum). Sofern das Ende nicht angegeben wird, folgt hier automatisch das Datum des Ablaufs der im Projekt hinterlegten \"Max. Gültigkeit in Tagen\" (um 23:59:59).","Note:\nExpiration date must be in the future (max. 900 days from start date). If the end is not given, here follows the date of expiry of the stored in the project \"Max. Validity in days\" (at 23:59:59)."]
["VBA96","Paycodes wurden erfolgreich generiert.","Paycodes were successfully generated."]
["VBA97","Bei der Erstellung einer oder mehrerer Paycodes ist ein Fehler aufgetreten. Prüfen Sie bitte die Daten und führen Sie den Befehl erneut aus.","In the preparation of one or more Paycodes an error has occurred. Please check the data and run the command again."]
["VBA98","Es ist ein Fehler aufgetreten! Bitte prüfen Sie alle Einstellungen und starten Sie den Befehl erneut.","There has been an error. Please check all the settings and start the command again."]
["VBA99","Bitte stellen Sie sicher, dass für alle zu erzeugenden Paycodes ein Betrag und der 'Verwendungszweck 1' angegeben wurde. \n\nStarten Sie anschließend den Befehl erneut.","Please make sure that all Paycodes to be produced, an amount and the Reason 1' is specified.\n\nThen run the command again."]
["VBA100","Ihr Verwendungszweck hat mehr als 27 Zeichen, bitte kürzen Sie diesen","Your usage has more than 27 characters, please shorten it"]
[]
[]
[]
[]
[]
[]
[]
[]
[]
[]
[]
[]
[]
[]
[]
[]
[]
[]
[]
[]
[]
[]
[]
[]
[]
[]
[]
[]
[]
[]
[]
[]
[]
[]
[]
[]
[]
[]
[]
[]
[]
[]
[]
[]
[]
[]
[]
[]
[]
[]
[]
[]
[]
[]
[]
[]
[]
[]
[]
[]
[]
[]
[]
[]
[]
[]
[]
[]
[]
[]
[]
[]
[]
[]
[]
[]
[]
[]
[]
["Blatt \"Liste\""]
[181,"Paycode Übersichts-Liste","Paycode overview list"]
[182,"In dieser Übersicht werden alle erzeugten Paycodes aufgelistet. Darüber hinaus können Sie über die Schaltfläche \"Paycode Status abfragen\" den Status der Paycodes aktualisieren.","In this overview, all generated Paycodes are listed. In addition, you can click the \"Paycode status query\" to update the status of Paycodes."]
["VBA183","Alle Einträge löschen","Delete all entries"]
["VBA184","Paycode Status abfragen","Paycode status query"]
[185,"Zeitstempel","Timestamp"]
[186,"Verwendungszweck","Reason"]
[187,"Betrag","Amount"]
[188,"Whrg.","Cur."]
[189,"Datum Gültig ab","Date valid from"]
[190,"Datum Gültig bis","Date valid until"]
[191,"Status","Status"]
[192,"Paycode","Paycode"]
[193,"Payment Hyperlink","Payment Hyperlink"]
[]
[]
[]
[]
[]
[]
[]
[]
[]
[]
[]
[]
[]
[]
[]
[]
[]
[]
[]
[]
[]
[]
[]
[]
[]
[]
[]
[]
[]
[]
[]
[]
[]
[]
[]
[]
[]
[]
[]
[]
[]
[]
[]
[]
[]
[]
[]
[]
[]
[]
[]
[]
[]
[]
[]
[]
[]
[]
[]
[]
[]
[]
[]
[]
[]
[]
[]
[]
[]
[]
[]
[]
[]
[]
[]
[]
[]
[]
[]
[]
[]
[]
[]
[]
[]
[]
["Blatt \"Paycode-Vorlagen\""]
[281,"Paycode Vorlagen verwalten","Manage Paycode Templates"]
[282,"Vorlage in das Zahlungsformular übernehmen","Apply Template in the payment form"]
[283,"Definieren Sie beliebig viele Paycode-Vorlagen. Diese können Sie bei Ihren Zahlungsvorgängen entsprechend verwenden.","Define any number of Paycode templates. You can use them in accordance with your payment transactions."]
[284,"Vorlage","Template"]
[285,"Verwendungszwecke 1*","Reason 1*"]
[286,"Verwendungszwecke 2*","Reason 2*"]
[287,"Betrag*","Amount*"]
[288,"Gültig ab","Valid from"]
[289,"Gültig bis","Valid until"]
["VBA290","Hinweis: \nGültigkeitsbeginn muss vor dem Datum 'Gültig bis' liegen. Sofern der Start nicht angegeben wird, gilt der Paycode ab seiner Erstellung.","Note:  \nValidity start must be before the date 'Expires'. Where are the start is not specified, the Paycode shall apply from its creation."]
["VBA291","Hinweis:\nGültigkeitsende muss in der Zukunft liegen (max. 900 Tage ab Startdatum). Sofern das Ende nicht angegeben wird, folgt hier automatisch das Datum des Ablaufs der im Projekt hinterlegten \"Max. Gültigkeit in Tagen\" (um 23:59:59).","Note:\nExpiration date must be in the future (max. 900 days from start date). If the end is not given, here follows the date of expiry of the stored in the project \"Max. Validity in days\" (at 23:59:59)."]
[]
[]
[]
[]
[]
[]
[]
[]
[]
[]
[]
[]
[]
[]
[]
[]
[]
[]
[]
[]
[]
[]
[]
[]
[]
[]
[]
[]
[]
[]
[]
[]
[]
[]
[]
[]
[]
[]
[]
[]
[]
[]
[]
[]
[]
[]
[]
[]
[]
[]
[]
[]
[]
[]
[]
[]
[]
[]
[]
[]
[]
[]
[]
[]
[]
[]
[]
[]
[]
[]
[]
[]
[]
[]
[]
[]
[]
[]
[]
[]
[]
[]
[]
[]
[]
[]
[]
[]
["Blatt \"E-Mail erzeugen\""]
[381,"E-Mail erzeugen und versenden","Create email and send"]
[382,"Geben Sie hier die Daten für den E-Mailversand an. Die Platzhalter werden automatisch mit den Werten des Paycodes aus dem Reiter \"Generieren\" bzw. der gewählten Vorlage belegt.","Enter the data for the e-mails. The placeholders are automatically assigned the values of Paycodes from the tab \"Generate\" and the selected template."]
["VBA383","Vorlage auswählen                 :","Select a Template                   :"]
["VBA384","Hinweis:\nDiese Option findet nur beim Versand über den E-Mail Client Outlook Anwendung.\n\nWenn die Option \"E-Mail sofort versenden\" aktiviert ist, erfolgt der Versand unmittelbar. Ist diese Option deaktiviert, kann die E-Mail zunächst noch in Outlook betrachtet werden und anschließend manuell versendet werden.","Note:\nThis option is only used when sending e-mail via Outlook\n\nIf the option \"Send email immediately\" is activated, the delivery takes place immediately. If this option is disabled, the e-mail can be initially considered in Outlook and then send it manually."]
[385,"E-Mail Empfänger (To)","E-mail recipient (To)"]
[386,"E-Mail Kopie (CC)","E-mail copy (CC)"]
[387,"E-Mail Text","E-mail body"]
[388,"Betreff","Regard"]
["VBA389","Anmerkungen zur E-Mail-Erstellung","Notes to the e-mail creation"]
["VBA390","E-Mail sofort versenden","Send E-mail immediately"]
[391,"<VERWENDUNGSZWECK1>","<REASON1>",null,null,null,"Bitte die Reihenfolge"]
[392,"<VERWENDUNGSZWECK2>","<REASON2>",null,null,null,"der E-Mail-Platzhalter"]
[393,"<BETRAG>","<AMOUNT>",null,null,null,"nicht ändern."]
[394,"<GUELTIG-BIS>","<VALID-UNTIL>",null,null,null,"Diese müssen immer"]
[395,"<GUELTIG-AB>","<VALID-FROM>",null,null,null,"im Bereich 411-418"]
[396,"<PAYCODELINK>","<PAYCODELINK>",null,null,null,"stehen!"]
[397,"<PAYCODE> ","<PAYCODE> ",null,null,null,"Der VBA-Code greift"]
[398,"<WAEHRUNG>","<CURRENCY>",null,null,null,"auf diesen Bereich zu."]
["VBA399","Zeilenumbrüche werden mit der  Tastenkombination [Alt]+[Enter] erzeugt.\n\nFolgende Platzhalter können in der E-Mail verwendet werden:\n\n- <VERWENDUNGSZWECK1>\n- <VERWENDUNGSZWECK2>\n- <BETRAG>\n- <GUELTIG-BIS>\n- <GUELTIG-AB>\n- <PAYCODELINK>\n- <PAYCODE> \n- <WAEHRUNG>\n\nDie Platzhalter werden bei der Erstellung der E-Mail mit den jeweiligen Überweisungsdaten gefüllt.\n","Line breaks are generated using the key combination [Alt] + [Enter].\n\nThe following wildcards can be used in the e-mail:\n\n- <REASON1>\n- <REASON2>\n- <AMOUNT>\n- <VALID-UNTIL>\n- <VALID-FROM>\n- <PAYCODELINK>\n- <PAYCODE> \n- <CURRENCY>\n\nThe placeholders are filled durring the creation of e-mail with the respective transfer data.\n"]
["VBA400","Es ist leider kein gültiger Paycode vorhanden. Aus diesem Grund kann keine E-Mail erzeugt werden.","It is not a valid Paycode present, therefore, no email will be generated."]
["VBA401","Bei der Erstellung der E-Mail ist ein Fehler aufgetreten. Bitte prüfen Sie unter 'Settings' Ihre E-Mail Einstellungen.","When creating the e-mail an error has occurred. Please check your e-mail settings."]
["VBA402","E-Mail erstellen","Create email "]
[]
[]
[]
[]
[]
[]
[]
[]
[]
[]
[]
[]
[]
[]
[]
[]
[]
[]
[]
[]
[]
[]
[]
[]
[]
[]
[]
[]
[]
[]
[]
[]
[]
[]
[]
[]
[]
[]
[]
[]
[]
[]
[]
[]
[]
[]
[]
[]
[]
[]
[]
[]
[]
[]
[]
[]
[]
[]
[]
[]
[]
[]
[]
[]
[]
[]
[]
[]
[]
[]
[]
[]
[]
[]
[]
[]
[]
["Blatt \"Info\""]
[481,"Information","Information"]
[482,"xls-PAYCODE ist ein Excel-Programm mit dem SOFORT Überweisungen über den Dienst der SOFORT AG einfach und schnell erstellt werden können.","xls Paycode is an Excel program with the SOFORT transfers via the service of SOFORT AG can be created quickly and easily."]
[483,"Es sind nur wenige Schritte dafür notwendig:","There are only a few steps required for this:"]
[484,"1. Eingabe der Überweisungsdaten wie Betrag, Verwendungszweck und Datum der Überweisung","1. Enter the transfer data such as amount, purpose and date of transfer"]
[485,"2. Paycode bzw. Paycode-Link generieren","2. Generate Paycode or Paycode link"]
[486,"3. Paycode-Link an Käufer senden, z. B. per E-Mail","3. Send Paycode Link to buyers, for example via e-mail"]
[487,"4. Käufer kann über den Paycode-Link oder den Paycode auf der Seite www.sofort.com/paycode die Überweisung ausführen","4. Buyer can use the Paycode or the link on the side www.sofort.com/paycode to perform the Transfer"]
[488,"Bei der vorliegenden Version handelt es sich um eine","The present version is a"]
[489,"mit folgenden Funktionen:","with the following functions:"]
[490," - Es können beliebig viele Vorlagen gespeichert werden"," - You can save as many templates"]
[491," - Es können beliebig viele E-Mails versendet werden"," - Any number of e-mails are sent"]
[492," - E-Mails können unter Verwendung von <PLATZHALTERN> individuell erstellt werden."," - E-mails can be created individually using <TEMPLATES>."]
[493," - Nach dem Erwerb der Vollversion erhalten Sie einen Freischaltcode, mit dem die bestehende Datei freigeschaltet wird. Damit können "," - After purchasing the full version you get a registration code, with which the existing file is unlocked. This can"]
[494,"    alle bereits eingetragenen Daten wie Vorlagen etc. weiter verwendet werden.","     all previously entered data, such as templates, etc. used on."]
[495,"Es können maximal","A maximum of"]
[496,"Paycodes erzeugt werden","Paycodes can be generated"]
[497," - In der registrierten Vollversion können beliebig viele Überweisungen durchgeführt werden."," - In the registered full version any number of transfers are performed."]
[498,"Das Programm wurde in Zusammenarbeit mit der Firma Excel-Inside Solutions entwickelt, welche auch den Support übernimmt.","The program was developed in collaboration with Excel Inside Solutions, which also takes the support."]
[499,"Wenn Sie sich für eine Vollversion des Programms interessieren, können Sie jederzeit gerne auf die Firma Excel-Inside Solutions zukommen","If you are interested in a full version of the program, you can contact any time the company Excel Inside Solutions."]
[500,"oder diese direkt auf der Webseite  ","or this directly on the website"]
[501,"bestellen.","order."]
[502,"Gerne berät und unterstützt Sie Excel-Inside Solutions auch, wenn es um die individuelle Anpassung des vorliegenden Programms auf","Excel Inside Solutions advises and supports you like, if it's on to the customization of the present program."]
[503,"Ihre Bedürfnisse geht. Sie sagen einfach, welche Funktion oder Erweiterung Sie benötigen und Excel-Inside Solutions setzt sich ","They just say what function or extension you need and Excel Inside Solutions is"]
[504,"umgehend mit Ihnen in Verbindung.","immediately in contact with you."]
[505,"Kontakt Excel-Inside Solutions","Contact Excel-Inside Solutions"]
[506,"Kontakt Sofort GmbH","Contact Sofort GmbH"]
[507,"Anschrift:","Address:"]
[508,"Telefon:","Phone:"]
[509,"E-Mail:","E-mail:"]
[510,"Web:","Web:"]
[511,"Funktionen","Functions"]
[512,"Version","Version"]
["VBA513","XML-Daten anzeigen","Show XML-data"]
["VBA514","Vollversion freischalten","Unlock full version"]
[]
[]
[]
[]
[]
[]
[]
[]
[]
[]
[]
[]
[]
[]
[]
[]
[]
[]
[]
[]
[]
[]
[]
[]
[]
[]
[]
[]
[]
[]
[]
[]
[]
[]
[]
[]
[]
[]
[]
[]
[]
[]
[]
[]
[]
[]
[]
[]
[]
[]
[]
[]
[]
[]
[]
[]
[]
[]
[]
[]
[]
[]
[]
[]
[]
["Blatt \"Benutzerdaten\""]
[581,"Benutzerdaten","User data"]
[582,"Erfassen Sie bitte in die grau hinterlegten Felder Ihre Daten. Zwingend notwendig ist der Konfigurationsschlüssel.","Enter please in the gray fields your data. The configuration key is necessary."]
[583,"Konfigurationsschlüssel","Conficuration key"]
[584,"Erfolgs URL","Success URL"]
[585,"Abbruch URL","Cancel URL"]
[586,"Benachrichtigungs E-Mail","Notification e-mail"]
[587,"Währung","Currency"]
[588,"Kundennummer","Customer Number"]
[589,"Projektnummer","Project Number"]
[590,"API Key","API Key"]
[591,"Proxy-Server verwenden","Use a proxy server"]
[592,"Proxy IP-Adresse:Port","Proxy IP-Adresse:Port"]
[593,"E-Mail Programm auswählen","Select E-mail program"]
[594,"Pfad :","Path :"]
[595,"Sprache","Language"]
["VBA596","Ändern","Change"]
["VBA597","Hinweis:\nHier eingetragene Werte überschreiben ggf. die Projekteinstellungen","Note:\nHere registered values may overwrite the project settings"]
["VBA598","Hinweis:\nEingabe des Proxy-Servers im Format:\nhttp:// + IP-Adresse + Port\n\nBeispiel:\nhttp://123.123.123.123:8080","Note:\nEnter the proxy server in the format:\nhttp: // + IP address + port\n\nexample:\nhttp://123.123.123.123:8080"]
["VBA599","Hinweis:\nHier muss der komplete Pfad zum E-Mail-Client Thunderbird eingetragen werden.","Note:\nHere, the entire path to the e-mail client Thunderbird must be entered."]
[]
[]
[]
[]
[]
[]
[]
[]
[]
[]
[]
[]
[]
[]
[]
[]
[]
[]
[]
[]
[]
[]
[]
[]
[]
[]
[]
[]
[]
[]
[]
[]
[]
[]
[]
[]
[]
[]
[]
[]
[]
[]
[]
[]
[]
[]
[]
[]
[]
[]
[]
[]
[]
[]
[]
[]
[]
[]
[]
[]
[]
[]
[]
[]
[]
[]
[]
[]
[]
[]
[]
[]
[]
[]
[]
[]
[]
[]
[]
[]
["Diverse Übersetzungen",null,null,null,null,null,"relevant"]
[681,"ja","yes",null,null,null,{"$f":"INDEX(Translate!$B$21:$J$1001,Translate!A701,Translate!$F$3)","v":"ja"}]
[682,"nein","no",null,null,null,{"$f":"INDEX(Translate!$B$21:$J$1001,Translate!A702,Translate!$F$3)","v":"nein"}]
["msg1","Sollen alle Einträge in der Liste gelöscht werden?","Should all entries are deleted from the list?"]
["msg2","Soll xls-Paycode jetzt geschlossen werden?","Should xls Paycode now be closed?"]
["msg3","Es ist ein Fehler aufgetreten! Bitte prüfen Sie alle Einstellungen und starten Sie den Befehl erneut.","There was an error! Please check all the settings and start the command again."]
["msg4","Es kann kein Paycode generiert werden. Bitte erfassen Sie zuerst einen 'Verwendungszweck 1' und einen gültigen 'Betrag' und starten Sie den Befehl erneut.","The Paycode can not be generated. Please enter first 'Reason 1' and a valid 'amount' and run the command again."]
["msg5","Ihr Verwendungszweck hat mehr als 27 Zeichen, bitte kürzen Sie diesen.","Your use has more than 27 characters, please shorten it."]
["msg6","Die Prozedur wurde abgebrochen an folgender Stelle: ","The procedure was terminated at the following location: "]
["msg7","Die E-Mail wurde an folgenden Empfänger gesendet: ","The e-mail has been sent to the following recipients: "]
["msg8","Der E-Mail Sofort-Versand kann nur genutzt werden, wenn Outlook gestartet ist!","The e-mail direct transmission can be used only when Outlook is launched!"]
["msg9","Bitte prüfen Sie, ob Lotus Notes als E-Mail Client zur Verfügung steht und ordnungsgemäß funktioniert.","Please check that Lotus Notes e-mail client is available and operating properly."]
["msg10","Die gespeicherte Vorlage wurde übernommen und steht für die Generierung des Paycodes zur Verfügung.","The stored template has been applied and can be used to generate the Paycodes."]
["msg11","Bitte geben Sie bei allen Vorlagen einen gültigen Verwendungszweck 1 ein.","Please enter a valid usage 1 for all templates."]
["msg12","Bitte geben Sie bei allen Vorlagen einen gültigen Betrag ein.","Please note for all templates a valid amount."]
["msg13","Bitte geben Sie bei allen Vorlagen eine gültige Vorlagenbzeichnung ein.","Please note for all templates a valid Vorlagenbzeichnung."]
["msg14","Diese Vorlage ist doppelt vorhanden.\nBitte geben Sie jeder Vorlage einen eindeutigen Namen.","This template is duplicated.\nPlease give each template a unique name."]
["msg15","Der Paycode wurde erfolgreich erzeugt. Die E-Mail kann nun erstellt werden.","The Paycode was successfully created. The e-mail can now be created."]
["msg16","Bitte erfassen Sie eine gültige IP-Adressse oder stellen Sie den Eintrag 'Proxy-Server verwenden' auf 'Nein' um.","Please enter a valid IP Adressse or set the entry 'Use Proxy Server' to 'No'."]
["msg17","Das Programm läuft nicht unter verwendeten Excel-Version. Verwenden Sie bitte eine Excel-Version ab Excel 200","The program does not run under the used Excel version. Please use a version of Excel from Excel 2007 or higher."]
["msg18","ie verwenden Excel 2007. Verwenden Sie zur Navigation zwischen den Tabellenblättern bitte die Registerkarten.","You use Excel 2007. Use to navigate between worksheets please tabs."]
[]
[]
[]
[]
[]
[]
[]
[]
[]
[]
[]
[]
[]
[]
[]
[]
[]
[]
[]
[]
[]
[]
[]
[]
[]
[]
[]
[]
[]
[]
[]
[]
[]
[]
[]
[]
[]
[]
[]
[]
[]
[]
[]
[]
[]
[]
[]
[]
[]
[]
[]
[]
[]
[]
[]
[]
[]
[]
[]
[]
[]
[]
[]
[]
[]
[]
[]
[]
[]
[]
[]
[]
[]
[]
[]
[]
[]
[]
[]
["Sprachenübersetzung"]
[null,"Deutsch","German","alemán","allemand"]
[null,"Englisch","English","Inglés","anglais"]
[null,"Spanisch","Spanish","español","espagnol"]
[null,"Französisch","French","francés","français"]
[null,"Polnisch"]
[null,"Niederländisch"]
[null,"Italienisch"]
[null,"Ungarisch"]
[null,"Slowakisch"]
[null,"Tchechisch"]
[]
[]
[null,"Aktuell sind nur 4 Sprachen übersetzt. Bei Bedarf müssen die restlichen Sprachen noch übersetzt werden."]